bitfinex-derivatives/quotes_SOLF0:USTF0_20250109
["timestamp","ask_amount","ask_price","bid_price","bid_amount"]
[1736446088373,2.663,187.79,187.69,3.1917]
[1736446088574,19.50883103,187.81,187.69,3.1917]
[1736446088777,19.50883103,187.84,187.69,3.1917]
[1736446089174,2.6629,187.79,187.72,2.6639]
[1736446089471,19.50883103,187.81,187.69,3.1917]
[1736446090072,19.50883103,187.81,187.69,5.856]
[1736446090273,19.50883103,187.84,187.69,3.1917]
[1736446090873,19.50883103,187.87,187.69,3.1917]
[1736446091079,1.5111,187.89,187.71,19.50883103]
[1736446091273,2.91204167,187.86,187.74,19.50883103]
[1736446091470,2.6628,187.8,187.71,19.50883103]
[1736446091979,2.6629,187.8,187.73,2.6637]
[1736446092182,19.50883103,187.84,187.69,3.1917]
[1736446092481,2.6632,187.78,187.72,2.6639]
[1736446092675,19.50883103,187.81,187.69,1.5099]
[1736446093382,2.6635,187.76,187.69,4.1742]
[1736446093883,6.6911,187.89,187.69,1.5099]
[1736446093884,19.50883103,187.84,187.69,1.5099]
[1736446094281,2.90682225,187.83,187.69,1.5099]
[1736446094685,2.6629,187.79,187.71,2.6639]
[1736446094979,19.50883103,187.81,187.69,1.5099]
[1736446095779,24.70883103,187.81,187.69,1.5099]
[1736446095980,19.50883103,187.78,187.69,1.5099]
[1736446096481,19.50883103,187.78,187.67,1.534]
[1736446097077,2.6639,187.72,187.67,4.1985]
[1736446097283,2.90095797,187.77,187.67,1.534]
[1736446097484,2.6636,187.74,187.67,1.534]
[1736446097679,2.90095797,187.77,187.67,1.534]
[1736446097982,2.6635,187.75,187.68,2.6643]
[1736446098184,6.8306,187.8,187.68,2.6643]
[1736446098583,2.6637,187.74,187.68,2.6643]
[1736446098984,2.11,187.81,187.7,2.6642]
[1736446099288,21.61883103,187.81,187.67,1.534]
[1736446099483,21.61883103,187.81,187.68,2.6644]
[1736446099680,2.11,187.81,187.67,1.534]
[1736446099879,2.11,187.81,187.68,24.76883103]
[1736446100088,2.11,187.81,187.71,19.50883103]
[1736446100286,2.6629,187.8,187.72,3.1279]
[1736446100586,2.6629,187.8,187.73,2.6636]
[1736446100774,2.11,187.81,187.73,2.6636]
[1736446100974,2.663,187.79,187.72,3.1279]
[1736446101276,2.663,187.79,187.73,2.6637]
[1736446101480,2.663,187.79,187.72,3.1279]
[1736446101481,2.6628,187.8,187.72,3.1279]
[1736446101687,2.11,187.81,187.72,3.1279]
[1736446102182,4.7727,187.81,187.75,2.6634]
[1736446102382,4.7727,187.81,187.76,1.5647]
[1736446102580,9.4327,187.81,187.76,1.5647]
[1736446102981,2.6629,187.79,187.76,1.5647]
[1736446103184,6.77,187.81,187.76,1.5647]
[1736446103783,2.6629,187.8,187.76,1.5647]
[1736446104084,6.77,187.81,187.73,0.97884426]
[1736446104685,2.663,187.79,187.73,0.97884426]
[1736446104986,6.77,187.81,187.73,0.97884426]
[1736446105185,2.6636,187.75,187.73,0.97884426]
[1736446105380,6.77,187.81,187.73,0.97884426]
[1736446105381,19.50883103,187.8,187.73,0.97884426]
[1736446106280,2.6636,187.74,187.73,0.97884426]
[1736446106685,19.50883103,187.77,187.63,4.2133]
[1736446107089,2.89657404,187.76,187.63,1.5482]
[1736446107390,2.89657404,187.76,187.64,2.665]
[1736446107590,2.89657404,187.75,187.64,2.665]
[1736446108190,2.89657404,187.75,187.62,4.2307]
[1736446108191,19.50883103,187.74,187.62,4.2307]
[1736446108581,2.6646,187.67,187.62,4.2307]
[1736446109286,2.6646,187.67,187.63,2.6651]
[1736446110381,2.6646,187.67,187.44,15.94]
[1736446110382,5.24,187.73,187.46,5.3349]
[1736446110587,19.50883103,187.68,187.52,1.4789]
[1736446110791,19.50883103,187.68,187.52,3.0633]
[1736446110995,2.6656,187.6,187.52,3.0633]
[1736446111188,19.50883103,187.65,187.52,3.0633]
[1736446111389,4.26,187.6,187.56,2.6661]
[1736446113688,4.26,187.6,187.58,2.6658]
[1736446113992,4.26,187.6,187.53,5.28]
[1736446114992,4.26,187.6,187.55,2.6662]
[1736446115188,4.26,187.6,187.53,5.28]
[1736446115899,4.26,187.6,187.52,3.0633]
[1736446116090,23.76883103,187.6,187.52,3.0633]
[1736446116290,19.50883103,187.57,187.43,19.50883103]
[1736446116490,2.6664,187.55,187.46,2.6676]
[1736446116689,19.50883103,187.57,187.41,5.28]
[1736446116993,2.667,187.51,187.41,5.28]
[1736446117190,19.50883103,187.57,187.41,24.78883103]
[1736446117692,2.90723821,187.5,187.4,19.81930329]
[1736446117894,2.6672,187.49,187.4,17.20760329]
[1736446118494,5.57443821,187.49,187.4,17.20760329]
[1736446118695,5.57443821,187.49,187.41,2.6683]
[1736446118893,5.57443821,187.49,187.4,14.53930329]
[1736446119993,2.90723821,187.49,187.35,60.5450213]
[1736446120400,19.50883103,187.46,187.36,2.6689]
[1736446120597,19.50883103,187.46,187.35,60.5450213]
[1736446120793,2.90723821,187.45,187.35,60.5450213]
[1736446121193,2.6684,187.41,187.35,60.5450213]
[1736446121798,2.90723821,187.4,187.35,60.5450213]
[1736446122000,5.57573821,187.4,187.35,60.5450213]
[1736446122301,2.90723821,187.4,187.35,60.5450213]
[1736446122595,2.90723821,187.4,187.37,2.6688]
[1736446122799,2.90723821,187.4,187.35,60.5450213]
[1736446123101,2.90723821,187.41,187.35,60.5450213]
[1736446123402,2.90723821,187.41,187.2,19.50883103]
[1736446123403,19.50883103,187.37,187.2,19.50883103]
[1736446123692,2.6695,187.33,187.25,2.6706]
[1736446123901,19.50883103,187.37,187.25,2.6706]
[1736446124292,19.50883103,187.34,187.21,5.63546487]
[1736446124499,19.50883103,187.31,187.21,5.63546487]
[1736446124698,19.50883103,187.31,187.21,4.00056487]
[1736446125098,2.90723821,187.3,187.21,4.00056487]
[1736446125296,19.50883103,187.28,187.21,0.98136487]
[1736446125495,2.671,187.22,187.21,0.98136487]
[1736446125799,2.90723821,187.27,187.21,0.98136487]
[1736446126296,2.671,187.22,187.21,0.98136487]
[1736446126492,19.50883103,187.25,187.17,6.487e-05]
[1736446126799,19.50883103,187.22,187.0,5.34]
[1736446127102,4.38733821,187.24,187.1,19.50883103]
[1736446127295,2.90723821,187.21,187.1,19.50883103]
[1736446127592,1.4801,187.24,187.13,19.50883103]
[1736446127797,5.34,187.29,187.13,19.50883103]
[1736446127996,5.34,187.29,187.16,19.50883103]
[1736446128403,19.50883103,187.28,187.17,2.6716]
[1736446128590,22.39222207,187.28,187.1,19.50883103]
[1736446128790,2.6709,187.24,187.18,2.6716]
[1736446128994,22.39222207,187.28,187.13,19.50883103]
[1736446129296,19.50883103,187.28,187.13,19.50883103]
[1736446129689,2.6706,187.25,187.18,2.6714]
[1736446129895,2.87606871,187.27,187.13,19.50883103]
[1736446130094,2.87606871,187.27,187.16,19.50883103]
[1736446130294,2.87606871,187.27,187.17,1.5671]
[1736446130902,19.50883103,187.31,187.17,1.5671]
[1736446131399,2.6705,187.26,187.17,1.5671]
[1736446131900,19.50883103,187.31,187.18,1.6245]
[1736446132400,19.50883103,187.31,187.19,1.4903]
[1736446133098,2.6704,187.26,187.2,2.6713]
[1736446133297,19.50883103,187.31,187.19,1.4903]
[1736446133498,2.12,187.26,187.19,1.4903]
[1736446134200,4.7906,187.26,187.2,2.6713]
[1736446134703,2.12,187.26,187.19,1.4903]
[1736446135298,2.12,187.26,187.2,19.50883103]
[1736446135501,4.67,187.34,187.2,19.50883103]
[1736446135897,4.67,187.34,187.23,19.50883103]
[1736446136096,4.67,187.34,187.33,2.6694]
[1736446137303,2.2035,187.34,187.33,2.6694]
[1736446137702,1.3493,187.46,187.33,5.4]
[1736446137904,19.50883103,187.47,187.33,5.4]
[1736446139504,19.50883103,187.44,187.33,5.4]
[1736446140004,2.6685,187.4,187.34,2.6693]
[1736446140305,19.50883103,187.47,187.33,5.4]
[1736446140507,19.50883103,187.43,187.33,5.4]
[1736446141508,2.6685,187.4,187.34,2.6693]
[1736446143500,19.50883103,187.43,187.36,2.6689]
[1736446143703,19.50883103,187.47,187.32,19.50883103]
[1736446144102,19.50883103,187.5,187.35,19.50883103]
[1736446144713,2.88009901,187.49,187.38,19.50883103]
[1736446144899,2.88009901,187.49,187.39,8.4953]
[1736446145307,19.50883103,187.56,187.41,19.50883103]
[1736446145507,19.50883103,187.59,187.44,19.50883103]
[1736446145906,2.666,187.57,187.44,19.50883103]
[1736446146306,2.88568159,187.58,187.44,19.50883103]
[1736446146709,19.50883103,187.59,187.44,19.50883103]
[1736446146710,2.88568159,187.57,187.44,19.50883103]
[1736446146908,2.88568159,187.57,187.45,0.98015255]
[1736446147205,2.6662,187.56,187.5,2.6669]
[1736446147412,31.95605823,187.59,187.47,5.36]
[1736446147709,31.95605823,187.62,187.48,1.613]
[1736446148210,4.796,187.63,187.5,31.95605823]
[1736446148504,4.796,187.63,187.51,1.6411]
[1736446148911,1.5228,187.63,187.51,1.6411]
[1736446149112,2.89392984,187.62,187.51,1.6411]
[1736446149308,5.55922984,187.62,187.51,1.6411]
[1736446149614,2.89392984,187.61,187.51,1.6411]
[1736446151719,2.89392984,187.6,187.56,2.666]
[1736446152014,2.89392984,187.6,187.53,31.95605823]
[1736446152215,2.89392984,187.6,187.59,2.6657]
[1736446152418,2.6652,187.64,187.59,2.6657]
[1736446152616,2.89392984,187.67,187.55,5.34]
[1736446152913,2.89392984,187.67,187.55,8.0062]
[1736446153120,2.89392984,187.66,187.55,5.34]
[1736446153414,2.6652,187.63,187.57,2.6659]
[1736446153822,2.6652,187.63,187.55,5.34]
[1736446154022,2.6652,187.63,187.58,2.6658]
[1736446154524,2.89392984,187.62,187.55,5.34]
[1736446154721,34.84998807,187.62,187.51,1.6411]
[1736446154919,31.95605823,187.59,187.49,1.6202]
[1736446155221,31.95605823,187.59,187.46,5.34]
[1736446155424,31.95605823,187.56,187.42,3.0704]
[1736446155719,31.95605823,187.56,187.43,2.6679]
[1736446155911,2.89392984,187.55,187.42,3.0704]
[1736446156522,2.89392984,187.55,187.44,2.6678]
[1736446157014,2.89392984,187.55,187.42,3.0704]
[1736446157221,2.89392984,187.54,187.42,3.0704]
[1736446157423,2.6671,187.5,187.45,2.6677]
[1736446157820,2.89392984,187.54,187.42,3.0704]
[1736446158313,2.89392984,187.53,187.44,31.95605823]
[1736446158511,2.89392984,187.53,187.51,2.6669]
[1736446158716,2.89392984,187.52,187.51,2.6669]
[1736446159025,2.89392984,187.57,187.47,31.95605823]
[1736446159221,2.89392984,187.57,187.54,2.6664]
[1736446159414,2.89392984,187.57,187.5,31.95605823]
[1736446159818,2.89392984,187.6,187.51,1.5077]
[1736446160019,2.89392984,187.6,187.52,1.5958]
[1736446160220,4.2185,187.63,187.52,1.5958]
[1736446160620,2.6648,187.66,187.56,31.95605823]
[1736446160825,1.6316,187.72,187.56,37.29605823]
[1736446161118,2.6643,187.7,187.63,2.6652]
[1736446161320,2.919026,187.71,187.59,31.95605823]
[1736446161626,2.919026,187.71,187.62,31.95605823]
[1736446161820,2.919026,187.7,187.67,2.6645]
[1736446162021,2.919026,187.7,187.64,5.36]
[1736446162228,1.6237,187.73,187.64,5.36]
[1736446162229,2.919026,187.72,187.64,5.36]
[1736446162527,2.919026,187.72,187.67,2.6646]
[1736446162728,2.919026,187.72,187.64,5.36]
[1736446162929,4.491826,187.79,187.64,5.36]
[1736446163424,4.491826,187.79,187.65,31.95605823]
[1736446163623,34.87508423,187.78,187.64,5.36]
[1736446163827,2.919026,187.78,187.64,5.36]
[1736446164325,2.919026,187.77,187.64,5.36]
[1736446164528,2.6639,187.73,187.67,2.6645]
[1736446164729,2.919026,187.77,187.65,31.95605823]
[1736446165028,2.6636,187.74,187.68,2.6643]
[1736446165225,1.5728,187.79,187.68,2.6643]
[1736446165627,2.91020686,187.78,187.68,2.6643]
[1736446165818,2.6637,187.74,187.68,2.6643]
[1736446166322,2.91020686,187.77,187.65,31.95605823]
[1736446166529,1.5728,187.79,187.64,5.36]
[1736446166925,1.5728,187.79,187.63,3.0909]
[1736446167124,31.95605823,187.73,187.59,31.95605823]
[1736446167429,2.6648,187.66,187.61,2.6654]
[1736446167629,1.5313,187.72,187.58,24.96133636]
[1736446167829,1.5313,187.72,187.58,26.45893636]
[1736446168129,19.64133636,187.75,187.58,26.45893636]
[1736446168325,21.17263636,187.78,187.61,19.64133636]
[1736446168628,2.90245385,187.74,187.61,19.64133636]
[1736446168831,2.6639,187.72,187.66,2.6647]
[1736446169029,2.6639,187.72,187.61,19.64133636]
[1736446169429,2.664,187.71,187.66,2.6647]
[1736446170019,2.6639,187.72,187.67,2.6646]
[1736446170223,25.43263636,187.78,187.67,2.6646]
[1736446170423,2.90305385,187.77,187.64,19.64133636]
[1736446170624,2.6636,187.75,187.69,2.6642]
[1736446170921,2.90305385,187.77,187.69,2.6642]
[1736446171124,5.7913,187.78,187.69,2.6642]
[1736446171326,2.6637,187.74,187.69,2.6642]
[1736446171628,25.43263636,187.78,187.61,19.64133636]
[1736446171831,25.43263636,187.78,187.66,2.6647]
[1736446172020,2.664,187.71,187.66,2.6647]
[1736446172629,2.6643,187.7,187.61,19.64133636]
[1736446172834,19.64133636,187.72,187.58,6.7976]
[1736446173126,19.64133636,187.69,187.59,2.6656]
[1736446173321,3.1675,187.68,187.53,6.956]
[1736446173631,19.64133636,187.66,187.53,6.956]
[1736446173831,2.90727664,187.67,187.53,26.59733636]
[1736446174328,2.90727664,187.67,187.62,2.6652]
[1736446174329,5.57197664,187.67,187.62,2.6652]
[1736446174534,2.90727664,187.67,187.59,5.32]
[1736446175628,2.6648,187.66,187.61,2.6653]
[1736446175829,2.90727664,187.65,187.61,2.6653]
[1736446176032,2.90727664,187.65,187.59,5.32]
[1736446176225,2.90727664,187.65,187.59,24.96133636]
[1736446176430,2.90727664,187.65,187.59,5.32]
[1736446176625,2.665,187.64,187.59,5.32]
[1736446176824,2.90727664,187.7,187.59,5.32]
[1736446177232,2.90727664,187.69,187.59,5.32]
[1736446177936,2.90727664,187.68,187.59,5.32]
[1736446178127,2.665,187.65,187.59,5.32]
[1736446178326,2.90727664,187.67,187.53,21.27733636]
[1736446178629,2.6652,187.63,187.57,2.666]
[1736446179230,2.6652,187.63,187.58,2.6659]
[1736446179429,2.90727664,187.62,187.53,21.27733636]
[1736446180034,2.90727664,187.61,187.56,19.64133636]
[1736446180229,2.90727664,187.61,187.59,2.6657]
[1736446180434,2.90727664,187.61,187.56,19.64133636]
[1736446180832,2.665,187.65,187.56,19.64133636]
[1736446180833,2.90727664,187.6,187.59,2.6657]
[1736446181040,3.0081,187.71,187.56,19.64133636]
[1736446181644,2.6647,187.67,187.62,2.6652]
[1736446181938,1.6065,187.73,187.62,19.64133636]
[1736446182338,1.6065,187.73,187.62,22.66063636]
[1736446182534,11.81711839,187.76,187.65,19.64133636]
[1736446182739,2.6639,187.72,187.67,2.6645]
[1736446183733,2.6638,187.73,187.68,2.6644]
[1736446184139,3.1025,187.76,187.65,19.64133636]
[1736446184839,2.664,187.72,187.67,2.6646]
[1736446185235,2.664,187.72,187.65,19.64133636]
[1736446185531,2.664,187.72,187.67,2.6646]
[1736446185836,2.6638,187.73,187.65,19.64133636]
[1736446186240,3.1025,187.76,187.65,19.64133636]
[1736446186942,5.7836,187.78,187.65,19.64133636]
[1736446187137,5.7836,187.78,187.68,19.64133636]
[1736446187338,6.9232,187.78,187.72,2.6638]
[1736446187538,6.9232,187.78,187.69,5.3]
[1736446187942,4.26,187.78,187.69,5.3]
[1736446189242,4.26,187.78,187.71,19.64133636]
[1736446189542,4.26,187.78,187.75,2.6633]
[1736446190134,4.26,187.78,187.72,3.2278]
[1736446190135,4.26,187.78,187.72,5.8915]
[1736446190338,4.26,187.78,187.72,3.2278]
[1736446190537,4.26,187.78,187.69,5.3]
[1736446190736,2.6633,187.76,187.71,2.664]
[1736446191144,4.26,187.78,187.69,5.3]
[1736446191347,2.6636,187.75,187.7,2.6642]
[1736446193343,19.64133636,187.81,187.68,5.3]
[1736446193647,2.92455755,187.74,187.68,5.3]
[1736446193848,2.92455755,187.74,187.71,2.664]
[1736446194047,2.92455755,187.74,187.68,24.94133636]
[1736446194349,2.92455755,187.73,187.68,24.94133636]
[1736446194551,8.77419748,187.85,187.71,19.64133636]
[1736446195054,8.77419748,187.85,187.75,2.6634]
[1736446195350,8.77419748,187.85,187.71,19.64133636]
[1736446195651,2.6627,187.81,187.71,19.64133636]
[1736446195847,1.5212,187.86,187.72,1.6097]
[1736446196052,142.54511,187.88,187.81,2.6625]
[1736446196246,142.54511,187.88,187.78,5.28]
[1736446196550,1.6251,187.88,187.78,5.28]
[1736446196749,2.6619,187.87,187.78,5.28]
[1736446197141,140.92001,187.91,187.8,19.64133636]
[1736446197341,4.723,187.93,187.8,19.64133636]
[1736446197544,4.723,187.93,187.81,1.5974]
[1736446197743,2.661,187.93,187.87,2.6617]
[1736446198250,1.6062,187.98,187.88,2.6615]
[1736446198442,2.6608,187.94,187.88,2.6615]
[1736446199153,1.6062,187.98,187.86,5.28]
[1736446199552,2.6614,187.9,187.86,5.28]
[1736446199751,1.6062,187.98,187.86,5.28]
[1736446200159,2.6615,187.89,187.82,1.4822]
[1736446200355,1.6062,187.98,187.85,2.6619]
[1736446200660,1.6062,187.98,187.83,19.64133636]
[1736446200955,1.6062,187.98,187.91,2.6612]
[1736446201254,1.6062,187.98,187.83,19.64133636]
[1736446201453,1.6062,187.98,187.83,5.28]
[1736446201662,2.6615,187.89,187.83,5.28]
[1736446201959,19.64133636,187.97,187.87,2.6616]
[1736446202165,1.6062,187.98,187.86,19.64133636]
[1736446202460,2.6606,187.96,187.86,19.64133636]
[1736446202652,2.6606,187.96,187.84,1.6415]
[1736446202653,140.92001,188.02,187.89,19.64133636]
[1736446202853,140.92001,188.02,187.92,19.64133636]
[1736446202854,143.57961,188.02,187.92,19.64133636]
[1736446203054,3.044,188.06,187.95,19.64133636]
[1736446203055,143.96401,188.06,187.95,19.64133636]
[1736446203457,140.92001,188.06,187.95,19.64133636]
[1736446203658,140.92001,188.06,187.98,19.64133636]
[1736446203856,140.92001,188.06,188.04,2.6594]
[1736446204055,1.4951,188.11,188.02,5.3]
[1736446204259,160.56134636,188.16,188.02,5.3]
[1736446204462,2.6581,188.13,188.06,2.659]
[1736446205159,8.66338138,188.15,188.01,19.64133636]
[1736446205359,19.64133636,188.13,187.99,1.5889]
[1736446205759,5.3,188.14,187.99,1.5889]
[1736446206157,19.64133636,188.13,187.99,1.5889]
[1736446206362,5.3,188.14,187.99,1.5889]
[1736446206565,3.0556,188.17,188.08,2.6588]
[1736446206953,2.87881636,188.16,188.04,19.64133636]
[1736446207158,2.87881636,188.16,188.07,19.64133636]
[1736446207664,2.87881636,188.15,188.07,19.64133636]
[1736446207866,2.87881636,188.15,188.11,2.6583]
[1736446208065,7.12881636,188.15,188.11,2.6583]
[1736446208267,7.12881636,188.15,188.07,19.64133636]
[1736446208566,7.12881636,188.15,188.05,1.5953]
[1736446208567,4.25,188.15,188.1,19.64133636]
[1736446208871,4.25,188.15,188.08,1.6122]
[1736446209559,2.658,188.14,188.08,1.6122]
[1736446209763,2.658,188.14,188.05,1.5953]
[1736446209964,5.52379612,188.14,188.05,1.5953]
[1736446210368,2.86579612,188.13,188.08,2.6588]
[1736446210865,2.658,188.14,188.05,1.5953]
[1736446211065,4.25,188.15,188.03,3.1487]
[1736446211464,2.6583,188.12,188.03,5.8082]
[1736446211662,4.25,188.15,188.03,3.1487]
[1736446211867,4.25,188.15,188.04,19.64133636]
[1736446212171,4.25,188.15,188.09,2.6586]
[1736446212465,2.85568915,188.14,188.04,19.64133636]
[1736446212771,2.85568915,188.14,188.1,2.6584]
[1736446212967,2.85568915,188.14,188.04,19.64133636]
[1736446213172,4.25,188.15,188.04,19.64133636]
[1736446213366,4.25,188.15,188.1,2.6585]
[1736446213565,4.25,188.15,188.04,19.64133636]
[1736446213766,4.25,188.15,188.07,2.6588]
[1736446213767,2.6581,188.13,188.07,2.6588]
[1736446213967,4.25,188.15,188.04,19.64133636]
[1736446214873,4.25,188.15,188.07,19.64133636]
[1736446215373,4.25,188.15,188.14,2.6579]
[1736446216463,4.5614,188.23,188.1,19.64133636]
[1736446216668,7.2181,188.23,188.16,2.6577]
[1736446217068,4.5614,188.23,188.16,2.6577]
[1736446217276,2.6572,188.2,188.14,2.6578]
[1736446217568,4.5614,188.23,188.13,19.64133636]
[1736446217776,2.6571,188.21,188.15,2.6578]
[1736446217966,4.5614,188.23,188.15,2.6578]
[1736446218371,4.5614,188.23,188.1,19.64133636]
[1736446218574,19.64133636,188.22,188.04,24.94133636]
[1736446218771,19.64133636,188.19,188.03,3.1487]
[1736446218972,2.6585,188.1,188.04,2.6593]
[1736446219377,2.6588,188.09,188.03,5.8082]
[1736446219676,19.64133636,188.13,187.98,24.94133636]
[1736446219980,4.7258,188.12,187.98,5.3]
[1736446220273,10.0258,188.12,187.96,60.35459193]
[1736446220573,2.6599,188.01,187.92,19.64133636]
[1736446220768,19.64133636,188.04,187.89,24.94133636]
[1736446220972,3.1148,188.0,187.89,24.94133636]
[1736446221572,3.1148,188.0,187.89,5.3]
[1736446222074,2.6603,187.98,187.9,2.6613]
[1736446222274,3.1148,188.0,187.89,5.3]
[1736446222776,3.1148,188.0,187.89,24.94133636]
[1736446223176,5.7748,188.0,187.93,2.6609]
[1736446223380,7.3648,188.0,187.86,19.64133636]
[1736446223571,7.3648,188.0,187.84,5.3]
[1736446224085,7.3648,188.0,187.86,19.64133636]
[1736446224278,2.6602,187.98,187.86,19.64133636]
[1736446224479,2.84812943,187.99,187.86,19.64133636]
[1736446224681,2.84812943,187.99,187.89,19.64133636]
[1736446224983,2.84812943,187.98,187.86,19.64133636]
[1736446225378,2.6607,187.95,187.88,2.6616]
[1736446226178,2.6607,187.95,187.89,2.6614]
[1736446226384,2.6605,187.96,187.86,19.64133636]
[1736446227587,2.6606,187.95,187.89,2.6614]
[1736446228181,7.3648,188.0,187.86,19.64133636]
[1736446228389,2.6604,187.97,187.9,2.6613]
[1736446228688,2.6604,187.97,187.86,19.64133636]
[1736446228689,2.85995587,187.96,187.89,19.64133636]
[1736446229484,2.85995587,187.96,187.86,19.64133636]
[1736446229688,19.64133636,187.98,187.83,19.64133636]
[1736446229881,2.6612,187.92,187.85,2.6619]
[1736446230081,31.10133636,187.98,187.83,19.64133636]
[1736446230486,2.6613,187.91,187.85,2.662]
[1736446231485,5.26,187.97,187.82,1.5786]
[1736446231686,2.6615,187.89,187.83,2.6622]
[1736446232095,1.5025,187.94,187.83,2.6622]
[1736446232286,2.6616,187.88,187.83,2.6622]
[1736446232688,19.64133636,187.92,187.8,2.6626]
[1736446232889,2.6622,187.85,187.77,60.41454856]
[1736446233092,3.054,187.91,187.77,60.41454856]
[1736446233290,2.86391643,187.9,187.77,60.41454856]
[1736446233597,2.6619,187.87,187.77,60.41454856]
[1736446233895,3.054,187.91,187.77,60.41454856]
[1736446233896,2.86391643,187.89,187.77,60.41454856]
[1736446234089,2.86391643,187.89,187.77,80.05588492]
[1736446234295,2.86391643,187.9,187.77,80.05588492]
[1736446235089,2.6619,187.87,187.81,2.6626]
[1736446235393,2.86391643,187.9,187.77,60.41454856]
[1736446235697,2.6618,187.87,187.81,2.6625]
[1736446236091,2.86391643,187.9,187.81,2.6625]
[1736446236394,2.86391643,187.9,187.83,2.6623]
[1736446236998,2.86391643,187.9,187.77,80.05588492]
[1736446237199,2.6615,187.89,187.84,2.6622]
[1736446237393,2.6615,187.89,187.77,80.05588492]
[1736446237394,2.86391643,187.9,187.77,80.05588492]
[1736446237595,2.86391643,187.89,187.77,80.05588492]
[1736446237787,22.50525279,187.89,187.77,60.41454856]
[1736446238195,19.64133636,187.86,187.71,19.64133636]
[1736446238395,1.6034,187.85,187.71,19.64133636]
[1736446238692,2.6626,187.81,187.75,2.6634]
[1736446238898,1.6034,187.85,187.71,19.64133636]
[1736446239299,2.6626,187.81,187.75,2.6634]
[1736446239496,2.86391643,187.8,187.75,2.6634]
[1736446239897,2.86391643,187.8,187.77,2.6632]
[1736446240098,2.86391643,187.8,187.74,19.64133636]
[1736446240592,2.86391643,187.81,187.8,2.6628]
[1736446241393,2.6619,187.86,187.8,2.6628]
[1736446242000,2.86391643,187.85,187.8,2.6628]
[1736446243899,2.86391643,187.85,187.74,19.64133636]
[1736446244208,19.64133636,187.86,187.71,24.90133636]
[1736446244406,19.64133636,187.86,187.74,2.6635]
[1736446244608,19.64133636,187.86,187.69,6.8191]
[1736446245107,2.86391643,187.85,187.69,6.8191]
[1736446245700,2.86391643,187.85,187.74,19.64133636]
[1736446246203,2.6625,187.83,187.74,19.64133636]
[1736446246601,2.6625,187.83,187.78,2.663]
[1736446247301,2.86391643,187.82,187.78,2.663]
[1736446247807,7.11391643,187.82,187.74,19.64133636]
[1736446248308,4.25,187.82,187.74,19.64133636]
[1736446248507,6.9125,187.82,187.74,19.64133636]
[1736446248709,4.25,187.82,187.74,19.64133636]
[1736446249915,4.25,187.82,187.76,2.6633]
[1736446250109,4.25,187.82,187.74,19.64133636]
[1736446250307,4.25,187.82,187.71,24.88133636]
[1736446250709,4.25,187.82,187.71,5.24]
[1736446251313,4.25,187.82,187.7,5.24]
[1736446251611,2.663,187.79,187.74,2.6636]
[1736446251811,2.86980028,187.81,187.7,5.24]
[1736446252008,2.86980028,187.81,187.71,24.88133636]
[1736446252208,6.9125,187.82,187.77,2.6631]
[1736446253917,2.6627,187.81,187.77,2.6631]
[1736446254517,4.25,187.82,187.69,1.5591]
[1736446254812,22.78003636,187.8,187.69,2.6642]
[1736446255112,2.6638,187.73,187.67,1.5009]
[1736446255716,2.6637,187.74,187.69,2.6643]
[1736446255912,22.78003636,187.8,187.67,1.5009]
[1736446256108,3.1387,187.8,187.67,1.5009]
[1736446256413,2.6632,187.77,187.68,19.64133636]
[1736446256612,13.7787,187.8,187.68,19.64133636]
[1736446257312,2.8688529,187.79,187.68,19.64133636]
[1736446257513,2.6634,187.76,187.71,2.664]
[1736446258013,13.7787,187.8,187.67,1.5009]
[1736446258210,33.42003636,187.8,187.67,1.5009]
[1736446258512,19.64133636,187.77,187.62,24.86133636]
[1736446258718,2.6641,187.71,187.66,2.6646]
[1736446258919,2.6641,187.71,187.62,19.64133636]
[1736446259120,2.6641,187.71,187.62,24.86133636]
[1736446259317,2.6641,187.71,187.66,2.6647]